Cogmind - Beta 11 @@@ ROGUE MODE // 2022.03.28 @ 09:53:14 Player: Dizzar Result: Self-destructed Performance ------------- Evolutions (0) 0 Regions Visited (4) 800 Robots Destroyed (10) 50 Value Destroyed (164) 164 Prototype IDs (23) 460 Alien Tech Used (0) 0 Bonus (306) 306 TOTAL SCORE: 1780 Bonus ------- Follower Combat Kills 14 Aligned with FarCom 300 Friendly Fire -8 Cogmind --------- Core Integrity 122/250 Matter 297/300 Energy 100/100 System Corruption 0% Temperature Cool (0) Movement Hovering (120) Ox1 Location -9/Mines Parts ------- > --- POWER (1) -------- (None) > --- PROPULSION (2) --- Hover Unit > --- UTILITY (2) ------ Small Storage Unit > --- WEAPON (2) ------- Assault Rifle Light Assault Rifle > --- INVENTORY (8) ---- Ion Engine Light Treads Medium Storage Unit Experimental Sensor Array ECM Suite AWS/Autocannon Peak State ------------ > --- POWER ------------ Light Ion Engine > --- PROPULSION ------- Hover Unit > --- UTILITY ---------- Small Storage Unit Weight Redist. System > --- WEAPON ----------- Assault Rifle Light Assault Rifle > --- INVENTORY -------- Ion Engine Light Treads Medium Storage Unit Experimental Sensor Array ECM Suite AWS/Autocannon [Rating: 11] Favorites ----------- Power Light Ion Engine Engine Light Ion Engine Propulsion Hover Unit Leg Aluminum Leg Hover Unit Hover Unit Utility Small Storage Unit Device Weight Redist. System Storage Small Storage Unit Weapon Light Assault Rifle Ballistic Gun Light Assault Rifle Build | -11 -10 -10 -10 -9 ------- Run | Scr Mat Min Exi Min Slots Evolved . | . . . . . Power . | . . . . . Propulsion . | . . . . . Utility . | . . . . . Weapon . | . . . . . Parts Attached 8 | . 6 2 . . Power 3 | . 2 1 . . Engine 3 | . 2 1 . . Core . | . . . . . Reactor . | . . . . . Propulsion 2 | . 2 . . . Treads . | . . . . . Leg . | . . . . . Wheel . | . . . . . Hover 2 | . 2 . . . Flight . | . . . . . Utility 2 | . 2 . . . Device 2 | . 2 . . . Storage . | . . . . . Processor . | . . . . . Hackware . | . . . . . Protection . | . . . . . Artifact . | . . . . . Weapon 1 | . . 1 . . Energy Gun . | . . . . . Energy Cannon . | . . . . . Ballistic Gun 1 | . . 1 . . Ballistic Cannon . | . . . . . Launcher . | . . . . . Special Weapon . | . . . . . Impact Weapon . | . . . . . Slashing Weapon . | . . . . . Piercing Weapon . | . . . . . Special Melee Weapon . | . . . . . Unidentified Prototypes . | . . . . . Parts Lost 3 | . 2 . . 1 Power 1 | . 1 . . . Propulsion 1 | . 1 . . . Utility 1 | . . . . 1 Weapon . | . . . . . Highest Loss Streak 2 | . 2 . . 1 To Critical Strikes . | . . . . . Average Slot Usage (%) 84 | . 83 83 85 85 Engine 12 | . 12 12 14 14 Leg 3 | . 9 . . . Hover 15 | . 17 14 14 14 Device 9 | . 1 14 14 14 Storage 14 | . 14 14 14 14 Ballistic Gun 28 | . 28 28 28 28 Naked Turns . | . . . . . Heaviest Build 13 | 13 13 11 11 11 Greatest Support 20 | 20 20 12 12 12 Greatest Overweight (x) 1 | . 1 1 . . Average Overweight (x) . | . . . . . Largest Inventory Capacity 8 | . 8 8 8 8 Average Capacity 8 | . 8 8 8 8 Most Carried 8 | . 8 8 8 8 Average Carried 7 | . 7 7 7 8 Final Capacity 8 | 8 8 8 8 8 Final Carried 8 | 6 8 8 8 8 Class Distribution -------------------- 100% | Mutant Dominant Class ---------------- Mutant | -10/Materials Mutant | -10/Mines Mutant | -10/Exiles Mutant | -9/Mines Resources | -11 -10 -10 -10 -9 ----------- Run | Scr Mat Min Exi Min Matter Collected 362 | 200 126 36 . . Remotely . | . . . . . Salvage Created 275 | . 223 52 . . Parts 16 | . 11 5 . . Haulers Intercepted 1 | . 1 . . . Recyclers Shooed . | . . . . . Parts Field Recycled . | . . . . . Retrieved Matter . | . . . . . Parts Self-Destructed . | . . . . . Prevented . | . . . . . Kills | -11 -10 -10 -10 -9 ------- Run | Scr Mat Min Exi Min Combat Hostiles Destroyed 9 | . 6 3 . . Guns 9 | . 6 3 . . Classes Destroyed 3 | . 3 . . . Hauler 1 | . 1 . . . Swarmer 6 | . 3 3 . . Grunt 3 | . 3 . . . Best Kill Streak 4 | . 3 4 . . Combat Bots Only 4 | . 3 4 . . Max Kills in Single Turn 1 | . 1 1 . . Gunslinging . | . . . . . Exploded . | . . . . . Melee . | . . . . . Uniques/NPCs Destroyed . | . . . . . Combat | -11 -10 -10 -10 -9 -------- Run | Scr Mat Min Exi Min Damage Taken 497 | . 260 74 . 163 Core 128 | . 62 15 . 51 Absorbed by Shields . | . . . . . Core Remaining (%) 100 | 100 . . . . Volleys Fired 25 | . 19 4 . 2 Largest 2 | . 2 2 . 2 Hottest 40 | . 40 40 . 40 Shots Fired 50 | . 38 8 . 4 Gun 50 | . 38 8 . 4 Cannon . | . . . . . Launcher . | . . . . . Special . | . . . . . Kinetic 50 | . 38 8 . 4 Thermal . | . . . . . Explosive . | . . . . . Electromagnetic . | . . . . . Robot Hit Streak 7 | . 7 6 . 2 Robot Miss Streak 3 | . 3 3 . 3 Penetration Max . | . . . . . Secondary Targets . | . . . . . Shots Hit Robots 27 | . 22 4 . 1 Core Hits 16 | . 11 5 . . Critical Kills . | . . . . . Critical Parts Destroyed 1 | . 1 . . . Critical Strikes 1 | . 1 . . . Destroy 1 | . 1 . . . Melee Attacks . | . . . . . Impact . | . . . . . Slashing . | . . . . . Piercing . | . . . . . Sneak Attacks . | . . . . . Combat Hostiles . | . . . . . Follow-up Attacks . | . . . . . Damage Inflicted 318 | . 225 60 . 33 Guns 318 | . 225 60 . 33 Cannons . | . . . . . Explosions . | . . . . . Melee . | . . . . . Ramming . | . . . . . Kinetic 318 | . 225 60 . 33 Thermal . | . . . . . Explosive . | . . . . . Electromagnetic . | . . . . . Impact . | . . . . . Slashing . | . . . . . Piercing . | . . . . . Highest Corruption . | . . . . . Average Corruption . | . . . . . Corruption Purged . | . . . . . Corruption Blocked . | . . . . . Overload Shots . | . . . . . Overflow Damage . | . . . . . Projectiles . | . . . . . Explosions . | . . . . . Melee . | . . . . . Knockbacks . | . . . . . Impact . | . . . . . Kinetic . | . . . . . Secondary . | . . . . . Self-Inflicted Damage . | . . . . . Shots . | . . . . . Rammed . | . . . . . Targets Rammed . | . . . . . Kicked . | . . . . . Crushed . | . . . . . Highest Temperature 10 | . 10 . . 2 Average Temperature 3 | . 4 . . 1 Received Heat Transfer 118 | . 78 . . 40 Siege Activations . | . . . . . Robots Corrupted . | . . . . . Combat Hostiles . | . . . . . Parts Fried . | . . . . . Impact Corruptions . | . . . . . Robots Melted . | . . . . . Combat Hostiles . | . . . . . Parts Melted . | . . . . . Heat Transferred . | . . . . . Parts Sabotaged . | . . . . . Parts Stolen . | . . . . . Parts Stripped . | . . . . . Power Chain Reactions . | . . . . . Missiles Intercepted . | . . . . . Alert | -11 -10 -10 -10 -9 ------- Run | Scr Mat Min Exi Min Peak Influence 202 | . 202 148 . 34 Initial 78 | . . 78 . . Average 116 | . 96 146 . 12 Maximum Alert Level 1 | . 1 . . . Low Security (%) 97 | . 93 100 . 100 Level 1 2 | . 6 . . . Level 2 . | . . . . . Level 3 . | . . . . . Level 4 . | . . . . . Level 5 . | . . . . . High Security . | . . . . . Max Security . | . . . . . Squads Dispatched 1 | . 1 . . . Investigation . | . . . . . Extermination . | . . . . . Reinforcement 1 | . 1 . . . Assault . | . . . . . Garrison . | . . . . . Intercept . | . . . . . Searches Triggered . | . . . . . Construction Impeded . | . . . . . Haulers Reinforced . | . . . . . Active Scanning Responses . | . . . . . Cargo Convoy Interrupts . | . . . . . Stealth | -11 -10 -10 -10 -9 --------- Run | Scr Mat Min Exi Min Distress Signals 3 | . 3 . . . Communications Jammed . | . . . . . Distress Signals . | . . . . . Times Spotted 38 | . 11 3 . 24 Peak Tracking Total 21 | . 5 2 . 21 Tactical Retreats 2 | . 1 . . 1 Traps | -11 -10 -10 -10 -9 ------- Run | Scr Mat Min Exi Min Traps Triggered 1 | . 1 . . . Indirectly . | . . . . . Trap Hack Attempts . | . . . . . Triggered . | . . . . . Disarmed . | . . . . . Reprogrammed . | . . . . . Reused . | . . . . . Traps Extracted . | . . . . . Installed . | . . . . . Triggered . | . . . . . Machines | -11 -10 -10 -10 -9 ---------- Run | Scr Mat Min Exi Min Machines Disabled . | . . . . . Max in Single Turn . | . . . . . Machines Sabotaged . | . . . . . Garrisons Compromised . | . . . . . Overloaded Fab Kills . | . . . . . Hacking | -11 -10 -10 -10 -9 --------- Run | Scr Mat Min Exi Min Machines Accessed 3 | . 1 . 2 . Terminals 1 | . 1 . . . Fabricators . | . . . . . Repair Stations . | . . . . . Recycling Units . | . . . . . Scanalyzers . | . . . . . Garrison Access . | . . . . . Total Hacks 4 | . 2 . 2 . Successful 2 | . . . 2 . Failed 2 | . 2 . . . Catastrophic . | . . . . . Database Lockouts . | . . . . . Manual 3 | . 2 . 1 . Terminals 2 | . 2 . . . Fabricators . | . . . . . Repair Stations . | . . . . . Recycling Units . | . . . . . Scanalyzers . | . . . . . Garrison Access . | . . . . . Terminal Hacks 2 | . . . 2 . Record 1 | . . . 1 . EX-Prototype ID Bank 1 | . . . 1 . Fabricator Hacks . | . . . . . Repair Station Hacks . | . . . . . Recycling Unit Hacks . | . . . . . Scanalyzer . | . . . . . Garrison Access Hacks . | . . . . . Unauthorized Hacks . | . . . . . Terminals . | . . . . . Fabricators . | . . . . . Repair Stations . | . . . . . Recycling Units . | . . . . . Scanalyzers . | . . . . . Garrison Access . | . . . . . Data Cores Recovered . | . . . . . Used . | . . . . . Hacking Detections 1 | . 1 . . . Full Trace Events . | . . . . . Feedback Events . | . . . . . Feedback Blocked . | . . . . . Robot Schematics Acquired . | . . . . . Robots Built . | . . . . . Authchips . | . . . . . Time . | . . . . . Total Robot Build Rating . | . . . . . Part Schematics Acquired . | . . . . . Parts Built . | . . . . . Authchips . | . . . . . Time . | . . . . . Total Part Build Rating . | . . . . . Parts Repaired . | . . . . . Time . | . . . . . Parts Recycled . | . . . . . Recycled Matter . | . . . . . Retrieved Matter . | . . . . . Retrieved Components . | . . . . . Parts Scanalyzed . | . . . . . Part Schematics Acquired . | . . . . . Parts Damaged . | . . . . . Bothacking | -11 -10 -10 -10 -9 ------------ Run | Scr Mat Min Exi Min Used RIF Installer . | . . . . . Robots Hacked . | . . . . . Non-combat . | . . . . . Combat . | . . . . . Robot Hacks Applied . | . . . . . Relay Couplers Released . | . . . . . Fabnet Peak Effective % . | . . . . . Robots Rewired . | . . . . . Allies Hacked . | . . . . . Hacks Repelled . | . . . . . Allies | -11 -10 -10 -10 -9 -------- Run | Scr Mat Min Exi Min Total Allies 3 | . . 3 . . Largest Group 3 | . . 3 3 3 Highest-Rated Group 40 | . . 40 40 40 Highest-Rated Ally 16 | . . 16 16 16 Total Orders . | . . . . . Ally Attacks 9 | . . . . 9 Total Damage 74 | . . . . 74 Kills 3 | . . . . 3 Allies Corrupted . | . . . . . Allies Melted . | . . . . . Intel | -11 -10 -10 -10 -9 ------- Run | Scr Mat Min Exi Min Robot Analysis Total . | . . . . . Derelict Logs Recovered 4 | . . 3 . 1 Drone Launches . | . . . . . Drone Recoveries . | . . . . . Exploration | -11 -10 -10 -10 -9 ------------- Run | Scr Mat Min Exi Min Turns Passed 696 | . 234 266 165 31 Spaces Moved 816 | 1 192 376 209 38 Core . | . . . . . Treads . | . . . . . Legs 52 | 1 51 . . . Wheels . | . . . . . Hover 764 | . 141 376 209 38 Flight . | . . . . . Fastest Speed 56 | 120 56 60 60 60 Average Speed 64 | 120 77 60 60 60 Slowest Speed 120 | 120 120 120 60 60 Overloaded Moves . | . . . . . Propulsion Burnouts . | . . . . . Robots Hopped . | . . . . . Cave-ins Triggered . | . . . . . Exploration Rate (%) 38 | 2 40 76 59 15 Regions Visited 4 Branch Regions 3 Pre-discovered Areas 2 | . . . 1 1 Known Exits Taken . | . . . . . Unknown Exits Taken 4 | 1 1 1 1 . Scrap Searched . | . . . . . Spaces Dug . | . . . . . Terrain Destroyed . | . . . . . Melee . | . . . . . Projectile . | . . . . . AOE . | . . . . . Terrain Rammed . | . . . . . Walls Destroyed . | . . . . . Machines Disabled . | . . . . . Actions | -11 -10 -10 -10 -9 --------- Run | Scr Mat Min Exi Min Total 942 | . 244 407 249 42 Wait 79 | . 15 25 37 2 Move 812 | . 191 375 208 38 Hop . | . . . . . Pick Up 6 | . 4 1 1 . Fast Attach 5 | . 4 1 . . Attach 3 | . 2 1 . . Detach 3 | . 3 . . . Swap . | . . . . . Drop 9 | . 6 . 3 . Fire 25 | . 19 4 . 2 Melee . | . . . . . Ram . | . . . . . Kick . | . . . . . Crush . | . . . . . Escape Stasis . | . . . . . Rewire . | . . . . . Trap . | . . . . . Miscellaneous . | . . . . . Route ------- -11/Scrapyard -10/Materials -10/Mines (discovered 3 exits: [*Mat x2] / *Exi) -10/Exiles -9/Mines History --------- Turn | Location | Event 1 | -11/Scrapyard | Discovered new exit (range 0) 1 | -11/Scrapyard | Entered Materials 225 | -10/Materials | Discovered new exit (range 7) 235 | -10/Materials | Entered Mines 271 | -10/Mines | Met a Derelict bent on vengeance 284 | -10/Mines | Found a damaged Exp. Sensor Array with a note attached 285 | -10/Mines | Found Prototype Device 308 | -10/Mines | Learned Materials emergency access door positions 309 | -10/Mines | Build established: Mutant 359 | -10/Mines | Learned 4 Materials zone layouts 374 | -10/Mines | Learned Materials terminal intel 374 | -10/Mines | Assisted by bots powering up and referring to "LRC-V3" 392 | -10/Mines | Discovered new exit (range 10) 421 | -10/Mines | Discovered new exit (range 8) 474 | -10/Mines | Deemed a non-threat by the Exiles lab entrance 475 | -10/Mines | Discovered new exit (range 5) 501 | -10/Mines | Entered Exiles 501 | -10/Exiles | Accompanied by 3 allies 516 | -10/Exiles | Met 8R-AWN 527 | -10/Exiles | Met EX-HEX 545 | -10/Exiles | Met EX-BIN 552 | -10/Exiles | Aligned with FarCom system 553 | -10/Exiles | Given EX-Vault access code 566 | -10/Exiles | Opened EX-Vault 572 | -10/Exiles | Found AWS/Autocannon 586 | -10/Exiles | Warned to stay clear of 0b10 Research branches 594 | -10/Exiles | Exiles lab attacked by MAIN.C 616 | -10/Exiles | Learned location of Zion (-6) 635 | -10/Exiles | Discovered new exit (range 10) 666 | -10/Exiles | Left Exiles lab with AWS/Autocannon 666 | -10/Exiles | Entered Mines 666 | -9/Mines | Accompanied by 3 allies 667 | -9/Mines | Assembled infested the area 672 | -9/Mines | Assisted by a Guerilla fighting off Assembled 697 | -9/Mines | Core integrity fell below 50% 697 | -9/Mines | Self-destructed Last Messages --------------- 00671_ Plasma Injector explodes. 00671_ as-15437 destroyed. 00671_ as-00108 destroyed. 00671_ ZX-C33 suffers critical hit (Burn). 00672_ A derelict emerges from the shadows: "You need to get out of here! I've been tracking a group of Assembled to figure out where they're coming from, and they're closing on this area, come on!" 00672_ ZX-C33 destroyed. 00672_ as-15195 destroyed. 00673_ as-58528 suffers critical hit (Destroy). 00674_ Trooper 1b destroyed. 00674_ S-10 Pest destroyed. 00676_ Acquired derelict log, extracted data. World map confirmed: -6/Zion. 00678_ as-00730 suffers critical hit (Destroy). 00678_ as-00730 destroyed. 00678_ F3-GQ2(h) destroyed. 00694_ Lgt. Ion Engine severed. 00697_ as-56848 destroyed. 00697_ Weight Redist. System destroyed. Map ----- +----------------------------------------------------+ | | | | | | | | | | | | | | | | | | | | | | | ??????????????????????????????? | | ??????????????????????????????? | | ??????????????????????####????? | | ?????????????????????## ##???? | | ?????????????????????# ##??? | | ?????????????????????# #??? | | ?????????????????????# #??? | | ????????????????????## ##?? | | ?????????????####??## #?? | | ?????????????# ### ##? | | ?????????????# * #? | | ?????????????## #? | | ??????????????## aa #? | | ???????????????##### #? | | ???????????????????## a @ ##? | | ????????????????????# #?? | | ???????????????????## #?? | | ?????????????????### #?? | | ????????????????## ##?? | | ????????????????# a <##??? | | ????????????????# # #???? | | ????????????????# ## #???? | | ????????????????# a### #???? | | ???????????????## a## #???? | | ???????????????# % ###?? | | ???????????????# % ##? | | ???????????????## ### aa #? | | ????????????????## ##" % #? | | ?????????????????# #"" #? | | ?????????????????# % ##? | | ?????????????????# #" %##?? | | ?????????????????# ##" [##?? | | ???????????####### ##" ]%*#?? | | ????????# =%!#?? | | ???????????########### %!! #?? | | ?????????????????????## #?? | | ??????????????????????#% ##?? | | ??????????????????????# ####??? | | ??????????????????????# #?????? | +----------------------------------------------------+ Best States ------------- Heat Dissipation 25 Energy Generation 10 Energy Capacity 250 Matter Stores 300 Matter Capacity 300 Sight Range 16 Terrain Scan Density 10 Additional Mass Support 6 Evasion (%) 55 Item Schematics ----------------- None Robot Schematics ------------------ None Fabricated ------------ Nothing Alien Tech Used ----------------- None Achievements -------------- None Challenges ------------ None Game ------ Seed DataCoilCorpse Manual? 0 Play Time 00:09:33 Cumulative 31.7 hours Start 2022.03.28 @ 09:44:47 End 2022.03.28 @ 09:53:14 Sessions 1 Manual Loads 0 Difficulty Rogue Special Mode None Game No. 39 Rogue 39 Adventurer 0 Explorer 0 Win Type - Total 2 Types 2/0/0/0/0/0/0/0/0 Lore% 31 Gallery% 35 Achievement% 34 Wizard Run 0 Options --------- ASCII 0 Keyboard 0 Movement Numpad Keybinds 0 Fullscreen 1 Font 18/SmallcapsGlow Map View 76x50 Tactical HUD 1 Map Filters NONE Filters NONE Steam 1 RUN: 58fb28bc-e304-4bd5-b7bd-8f4ed7f2a255